[Event "Titled Tuesday Blitz March 22 Late 2022"]
[White "Ferreira, Vitor Hugo Vieira"]
[Black "Jary, Sergey"]
[WhiteFideId "2119765"]
[BlackFideId "14110350"]
[WhiteElo "2165"]
[BlackElo "2260"]
[Result "0-1"]
[Round "07"]
[TimeControl "180+1"]
[Date "2022.03.22"]
[WhiteClock "0:00:05"]
[BlackClock "0:00:44"]

1. e4 {[%clk 0:03:00]}  c5 {[%clk 0:02:59]} 2. Nf3 {[%clk 0:03:00]}  Nc6 {[%clk 0:02:59]} 3. d4 {[%clk 0:02:59]}  cxd4 {[%clk 0:03:00]} 4. Nxd4 {[%clk 0:03:00]}  g6 {[%clk 0:03:00]} 5. c4 {[%clk 0:02:58]}  Nf6 {[%clk 0:02:59]} 6. Nc3 {[%clk 0:02:57]}  d6 {[%clk 0:03:00]} 7. Be2 {[%clk 0:02:51]}  Nxd4 {[%clk 0:02:55]} 8. Qxd4 {[%clk 0:02:50]}  Bg7 {[%clk 0:02:55]} 9. O-O {[%clk 0:02:49]}  O-O {[%clk 0:02:51]} 10. Bg5 {[%clk 0:02:45]}  Be6 {[%clk 0:02:42]} 11. Qd2 {[%clk 0:02:43]}  a6 {[%clk 0:02:43]} 12. Bh6 {[%clk 0:02:42]}  Bxh6 {[%clk 0:02:37]} 13. Qxh6 {[%clk 0:02:40]}  Rc8 {[%clk 0:02:38]} 14. Rad1 {[%clk 0:02:21]}  Qa5 {[%clk 0:02:36]} 15. Nd5 {[%clk 0:02:07]}  Bxd5 {[%clk 0:02:31]} 16. exd5 {[%clk 0:02:05]}  Qxa2 {[%clk 0:02:32]} 17. Rd2 {[%clk 0:01:58]}  Qa4 {[%clk 0:02:23]} 18. Bd3 {[%clk 0:01:38]}  Qb4 {[%clk 0:02:22]} 19. Re2 {[%clk 0:01:36]}  Rc7 {[%clk 0:02:19]} 20. Rfe1 {[%clk 0:01:35]}  Re8 {[%clk 0:02:12]} 21. h3 {[%clk 0:01:28]}  Qb3 {[%clk 0:02:08]} 22. Qd2 {[%clk 0:01:22]}  b5 {[%clk 0:02:03]} 23. cxb5 {[%clk 0:01:16]}  axb5 {[%clk 0:02:03]} 24. Re3 {[%clk 0:00:58]}  Qxd5 {[%clk 0:01:59]} 25. Qe2 {[%clk 0:00:55]}  e5 {[%clk 0:01:51]} 26. Bxb5 {[%clk 0:00:53]}  Rb8 {[%clk 0:01:50]} 27. Bd3 {[%clk 0:00:51]}  Kg7 {[%clk 0:01:43]} 28. Rd1 {[%clk 0:00:44]}  Qc5 {[%clk 0:01:39]} 29. Kh1 {[%clk 0:00:35]}  Rb4 {[%clk 0:01:38]} 30. Qd2 {[%clk 0:00:32]}  Qb6 {[%clk 0:01:28]} 31. Bf1 {[%clk 0:00:27]}  Rxb2 {[%clk 0:01:20]} 32. Qe1 {[%clk 0:00:26]}  Qc5 {[%clk 0:01:09]} 33. Red3 {[%clk 0:00:23]}  Rxf2 {[%clk 0:01:06]} 34. Rxd6 {[%clk 0:00:21]}  e4 {[%clk 0:01:02]} 35. Rd8 {[%clk 0:00:18]}  Nh5 {[%clk 0:00:56]} 36. Ba6 {[%clk 0:00:13]}  e3 {[%clk 0:00:52]} 37. Ra1 {[%clk 0:00:11]}  Qg5 {[%clk 0:00:46]} 38. Qg1 {[%clk 0:00:09]}  Qxd8 {[%clk 0:00:46]} 39. Qb1 {[%clk 0:00:05]}  Qd4 {[%clk 0:00:44]} 40. Qb2 {[%clk 0:00:05]}  Qxb2 {[%clk 0:00:44]} 0-1


[Site "https://www.chess.com"]

[Event "Titled Tuesday Blitz March 22 Late 2022"]
[White "Gatterer, Florian"]
[Black "Romanchuk, Viktor"]
[WhiteFideId "811688"]
[BlackFideId "14109271"]
[WhiteElo "2218"]
[BlackElo "2242"]
[Result "1/2-1/2"]
[Round "07"]
[TimeControl "180+1"]
[Date "2022.03.22"]
[WhiteClock "0:00:01"]
[BlackClock "0:00:31"]

1. e4 {[%clk 0:03:00]}  e6 {[%clk 0:02:59]} 2. d4 {[%clk 0:02:59]}  d5 {[%clk 0:02:58]} 3. Nd2 {[%clk 0:03:00]}  dxe4 {[%clk 0:02:58]} 4. Nxe4 {[%clk 0:02:59]}  Nd7 {[%clk 0:02:58]} 5. Nf3 {[%clk 0:02:58]}  Ngf6 {[%clk 0:02:59]} 6. Nxf6+ {[%clk 0:02:58]}  Nxf6 {[%clk 0:02:59]} 7. Be3 {[%clk 0:02:58]}  Nd5 {[%clk 0:02:58]} 8. Qd2 {[%clk 0:02:58]}  Bb4 {[%clk 0:02:57]} 9. c3 {[%clk 0:02:58]}  Bd6 {[%clk 0:02:58]} 10. Bg5 {[%clk 0:02:48]}  Be7 {[%clk 0:02:54]} 11. Bxe7 {[%clk 0:02:28]}  Qxe7 {[%clk 0:02:55]} 12. Bd3 {[%clk 0:02:28]}  Bd7 {[%clk 0:02:48]} 13. O-O-O {[%clk 0:02:27]}  O-O-O {[%clk 0:02:46]} 14. Rhe1 {[%clk 0:02:27]}  Qf6 {[%clk 0:02:45]} 15. Be4 {[%clk 0:02:21]}  Ba4 {[%clk 0:02:37]} 16. b3 {[%clk 0:02:14]}  Be8 {[%clk 0:02:36]} 17. Kb2 {[%clk 0:02:09]}  Qf4 {[%clk 0:02:23]} 18. Bxd5 {[%clk 0:02:02]}  Qxd2+ {[%clk 0:02:22]} 19. Rxd2 {[%clk 0:02:00]}  Rxd5 {[%clk 0:02:19]} 20. c4 {[%clk 0:01:52]}  Rd8 {[%clk 0:02:18]} 21. Kc3 {[%clk 0:01:52]}  Rf8 {[%clk 0:02:10]} 22. g3 {[%clk 0:01:46]}  h6 {[%clk 0:02:05]} 23. h4 {[%clk 0:01:44]}  b6 {[%clk 0:01:58]} 24. Rde2 {[%clk 0:01:33]}  Rd6 {[%clk 0:01:51]} 25. Ne5 {[%clk 0:01:24]}  f6 {[%clk 0:01:48]} 26. Nd3 {[%clk 0:01:10]}  Bf7 {[%clk 0:01:46]} 27. Nf4 {[%clk 0:01:05]}  Re8 {[%clk 0:01:45]} 28. h5 {[%clk 0:01:01]}  c5 {[%clk 0:01:41]} 29. dxc5 {[%clk 0:00:52]}  bxc5 {[%clk 0:01:41]} 30. Re3 {[%clk 0:00:36]}  Kc7 {[%clk 0:01:30]} 31. g4 {[%clk 0:00:35]}  e5 {[%clk 0:01:27]} 32. Nd3 {[%clk 0:00:23]}  Kc6 {[%clk 0:01:25]} 33. f4 {[%clk 0:00:23]}  Rd4 {[%clk 0:01:02]} 34. fxe5 {[%clk 0:00:20]}  Rxg4 {[%clk 0:01:02]} 35. exf6 {[%clk 0:00:18]}  Rxe3 {[%clk 0:01:02]} 36. Rxe3 {[%clk 0:00:16]}  gxf6 {[%clk 0:01:02]} 37. Re7 {[%clk 0:00:15]}  Bxh5 {[%clk 0:01:02]} 38. Re6+ {[%clk 0:00:15]}  Kc7 {[%clk 0:01:00]} 39. Nxc5 {[%clk 0:00:14]}  Rf4 {[%clk 0:00:54]} 40. Na6+ {[%clk 0:00:11]}  Kd7 {[%clk 0:00:52]} 41. Nc5+ {[%clk 0:00:11]}  Kd8 {[%clk 0:00:52]} 42. a4 {[%clk 0:00:10]}  Bf7 {[%clk 0:00:47]} 43. Ra6 {[%clk 0:00:09]}  h5 {[%clk 0:00:46]} 44. Rxa7 {[%clk 0:00:09]}  Ke8 {[%clk 0:00:46]} 45. Nb7 {[%clk 0:00:08]}  Kf8 {[%clk 0:00:44]} 46. Nd6 {[%clk 0:00:08]}  Bg6 {[%clk 0:00:42]} 47. c5 {[%clk 0:00:08]}  h4 {[%clk 0:00:38]} 48. c6 {[%clk 0:00:08]}  Rf2 {[%clk 0:00:38]} 49. Kb4 {[%clk 0:00:06]}  Rc2 {[%clk 0:00:37]} 50. c7 {[%clk 0:00:06]}  h3 {[%clk 0:00:34]} 51. Ra8+ {[%clk 0:00:01]}  Kg7 {[%clk 0:00:31]} 52. c8=Q {[%clk 0:00:01]} 1/2-1/2


[Site "https://www.chess.com"]

[Event "Titled Tuesday Blitz March 22 Late 2022"]
[White "Golubka, Petro"]
[Black "Sanal, Vahap"]
[WhiteFideId "14114224"]
[BlackFideId "6300545"]
[WhiteElo "2346"]
[BlackElo "2603"]
[Result "0-1"]
[Round "07"]
[TimeControl "180+1"]
[Date "2022.03.22"]
[WhiteClock "0:00:21"]
[BlackClock "0:00:58"]

1. d4 {[%clk 0:03:00]}  Nf6 {[%clk 0:02:59]} 2. Bg5 {[%clk 0:02:59]}  e6 {[%clk 0:02:57]} 3. Nd2 {[%clk 0:02:59]}  d5 {[%clk 0:02:57]} 4. e3 {[%clk 0:02:57]}  Be7 {[%clk 0:02:57]} 5. Ngf3 {[%clk 0:02:56]}  Nbd7 {[%clk 0:02:58]} 6. c3 {[%clk 0:02:56]}  b6 {[%clk 0:02:58]} 7. Qc2 {[%clk 0:02:56]}  Bb7 {[%clk 0:02:58]} 8. O-O-O {[%clk 0:02:56]}  c5 {[%clk 0:02:56]} 9. h4 {[%clk 0:02:55]}  h6 {[%clk 0:02:56]} 10. Bf4 {[%clk 0:02:55]}  Ng4 {[%clk 0:02:52]} 11. Bg3 {[%clk 0:02:50]}  a6 {[%clk 0:02:52]} 12. h5 {[%clk 0:02:35]}  b5 {[%clk 0:02:42]} 13. Kb1 {[%clk 0:02:30]}  b4 {[%clk 0:02:42]} 14. dxc5 {[%clk 0:02:27]}  bxc3 {[%clk 0:02:41]} 15. c6 {[%clk 0:02:16]}  Bxc6 {[%clk 0:02:38]} 16. Qxc3 {[%clk 0:02:16]}  Qb6 {[%clk 0:02:32]} 17. Nd4 {[%clk 0:02:10]}  Ba4 {[%clk 0:02:27]} 18. Rc1 {[%clk 0:02:06]}  O-O {[%clk 0:02:27]} 19. Qc7 {[%clk 0:02:04]}  Qb4 {[%clk 0:02:25]} 20. N2b3 {[%clk 0:01:57]}  Bxb3 {[%clk 0:02:18]} 21. axb3 {[%clk 0:01:48]}  Ngf6 {[%clk 0:02:18]} 22. Nc6 {[%clk 0:01:45]}  Qe4+ {[%clk 0:02:18]} 23. Ka2 {[%clk 0:01:44]}  Rfe8 {[%clk 0:02:17]} 24. Rh4 {[%clk 0:01:42]}  Qf5 {[%clk 0:02:11]} 25. Nd4 {[%clk 0:01:24]}  Qh7 {[%clk 0:02:10]} 26. Be2 {[%clk 0:01:14]}  e5 {[%clk 0:01:58]} 27. Nc6 {[%clk 0:01:13]}  Bf8 {[%clk 0:01:59]} 28. Nxe5 {[%clk 0:01:11]}  Nxe5 {[%clk 0:01:54]} 29. Bxe5 {[%clk 0:01:11]}  Qf5 {[%clk 0:01:52]} 30. Bxf6 {[%clk 0:00:57]}  Rac8 {[%clk 0:01:51]} 31. Qxc8 {[%clk 0:00:51]}  Rxc8 {[%clk 0:01:51]} 32. Rxc8 {[%clk 0:00:52]}  Qxc8 {[%clk 0:01:52]} 33. Bc3 {[%clk 0:00:51]}  Be7 {[%clk 0:01:43]} 34. Rg4 {[%clk 0:00:50]}  Bf8 {[%clk 0:01:36]} 35. g3 {[%clk 0:00:50]}  Qf5 {[%clk 0:01:33]} 36. Rf4 {[%clk 0:00:49]}  Qe6 {[%clk 0:01:33]} 37. Bf3 {[%clk 0:00:46]}  Bc5 {[%clk 0:01:29]} 38. Rg4 {[%clk 0:00:44]}  Qf5 {[%clk 0:01:23]} 39. Rf4 {[%clk 0:00:36]}  Qd3 {[%clk 0:01:21]} 40. b4 {[%clk 0:00:34]}  Bb6 {[%clk 0:01:19]} 41. Rg4 {[%clk 0:00:31]}  d4 {[%clk 0:01:14]} 42. Bxd4 {[%clk 0:00:30]}  Qc4+ {[%clk 0:01:14]} 43. Ka3 {[%clk 0:00:29]}  Qd3+ {[%clk 0:01:11]} 44. Bc3 {[%clk 0:00:29]}  Kf8 {[%clk 0:01:06]} 45. Rf4 {[%clk 0:00:24]}  a5 {[%clk 0:01:00]} 46. bxa5 {[%clk 0:00:22]}  Bxa5 {[%clk 0:01:01]} 47. Rd4 {[%clk 0:00:22]}  Qa6 {[%clk 0:01:00]} 48. Kb3 {[%clk 0:00:22]}  Qb5+ {[%clk 0:01:00]} 49. Kc2 {[%clk 0:00:21]}  Qf5+ {[%clk 0:00:59]} 50. Be4 {[%clk 0:00:21]}  Qxf2+ {[%clk 0:00:59]} 51. Rd2 {[%clk 0:00:21]}  Qxe3 {[%clk 0:00:59]} 52. Bxa5 {[%clk 0:00:21]}  Qxe4+ {[%clk 0:00:59]} 53. Rd3 {[%clk 0:00:21]}  Qa4+ {[%clk 0:00:58]} 0-1


[Site "https://www.chess.com"]

[Event "Titled Tuesday Blitz March 22 Late 2022"]
[White "Goryachkina, Aleksandra"]
[Black "Vusatiuk, Vladimir"]
[WhiteFideId "4147103"]
[BlackFideId "14118610"]
[WhiteElo "2426"]
[BlackElo "2157"]
[Result "1-0"]
[Round "07"]
[TimeControl "180+1"]
[Date "2022.03.22"]
[WhiteClock "0:00:03"]
[BlackClock "0:00:07"]

1. e4 {[%clk 0:02:59]}  Nc6 {[%clk 0:03:00]} 2. Nc3 {[%clk 0:02:57]}  e6 {[%clk 0:02:58]} 3. Nf3 {[%clk 0:02:54]}  d5 {[%clk 0:02:55]} 4. exd5 {[%clk 0:02:50]}  exd5 {[%clk 0:02:56]} 5. d4 {[%clk 0:02:50]}  Bg4 {[%clk 0:02:18]} 6. Bb5 {[%clk 0:02:44]}  Bb4 {[%clk 0:02:06]} 7. h3 {[%clk 0:02:41]}  Bh5 {[%clk 0:02:01]} 8. O-O {[%clk 0:02:28]}  Ne7 {[%clk 0:01:47]} 9. Bf4 {[%clk 0:02:02]}  O-O {[%clk 0:01:43]} 10. Re1 {[%clk 0:01:54]}  Bxf3 {[%clk 0:01:31]} 11. Qxf3 {[%clk 0:01:37]}  Nxd4 {[%clk 0:01:25]} 12. Qd3 {[%clk 0:01:35]}  Bxc3 {[%clk 0:01:16]} 13. bxc3 {[%clk 0:01:34]}  Nxb5 {[%clk 0:01:16]} 14. Qxb5 {[%clk 0:01:33]}  b6 {[%clk 0:01:04]} 15. Rad1 {[%clk 0:01:30]}  c6 {[%clk 0:01:03]} 16. Qb4 {[%clk 0:01:16]}  Ng6 {[%clk 0:00:55]} 17. Bg3 {[%clk 0:01:04]}  b5 {[%clk 0:00:39]} 18. Re3 {[%clk 0:00:22]}  Qd7 {[%clk 0:00:23]} 19. h4 {[%clk 0:00:21]}  h5 {[%clk 0:00:22]} 20. Qc5 {[%clk 0:00:20]}  Rfe8 {[%clk 0:00:19]} 21. Rde1 {[%clk 0:00:19]}  Rxe3 {[%clk 0:00:18]} 22. Rxe3 {[%clk 0:00:20]}  a6 {[%clk 0:00:14]} 23. Qb6 {[%clk 0:00:19]}  f5 {[%clk 0:00:10]} 24. Rf3 {[%clk 0:00:18]}  Rf8 {[%clk 0:00:07]} 25. Bf4 {[%clk 0:00:15]}  Nxh4 {[%clk 0:00:06]} 26. Rg3 {[%clk 0:00:15]}  Qe6 {[%clk 0:00:04]} 27. Qd4 {[%clk 0:00:15]}  Rf7 {[%clk 0:00:03]} 28. Rg5 {[%clk 0:00:06]}  Ng6 {[%clk 0:00:02]} 29. Rxh5 {[%clk 0:00:04]}  Nxf4 {[%clk 0:00:03]} 30. Qxf4 {[%clk 0:00:04]}  g6 {[%clk 0:00:01]} 31. Rh3 {[%clk 0:00:04]}  Kg7 {[%clk 0:00:01]} 32. Qh6+ {[%clk 0:00:03]}  Kf6 {[%clk 0:00:02]} 33. Qh8+ {[%clk 0:00:04]}  Ke7 {[%clk 0:00:02]} 34. Re3 {[%clk 0:00:04]}  Kd7 {[%clk 0:00:02]} 35. Rxe6 {[%clk 0:00:03]}  Kxe6 {[%clk 0:00:03]} 36. Qe8+ {[%clk 0:00:04]}  Kf6 {[%clk 0:00:04]} 37. Qxc6+ {[%clk 0:00:04]}  Kg7 {[%clk 0:00:05]} 38. Qxa6 {[%clk 0:00:04]}  Rf6 {[%clk 0:00:06]} 39. Qxb5 {[%clk 0:00:05]}  Re6 {[%clk 0:00:07]} 40. Qxd5 {[%clk 0:00:05]}  Re1+ {[%clk 0:00:05]} 41. Kh2 {[%clk 0:00:05]}  Ra1 {[%clk 0:00:06]} 42. Qd4+ {[%clk 0:00:06]}  Kh6 {[%clk 0:00:06]} 43. a4 {[%clk 0:00:06]}  Ra3 {[%clk 0:00:06]} 44. Qb4 {[%clk 0:00:06]}  Ra2 {[%clk 0:00:06]} 45. a5 {[%clk 0:00:07]}  Rxc2 {[%clk 0:00:07]} 46. a6 {[%clk 0:00:07]}  Ra2 {[%clk 0:00:07]} 47. Qb6 {[%clk 0:00:06]}  Kh5 {[%clk 0:00:07]} 48. a7 {[%clk 0:00:06]}  f4 {[%clk 0:00:07]} 49. Qb7 {[%clk 0:00:04]}  f3 {[%clk 0:00:06]} 50. Qxf3+ {[%clk 0:00:04]}  Kh6 {[%clk 0:00:06]} 51. a8=Q {[%clk 0:00:03]}  Rxa8 {[%clk 0:00:07]} 52. Qxa8 {[%clk 0:00:03]} 1-0


[Site "https://www.chess.com"]

[Event "Titled Tuesday Blitz March 22 Late 2022"]
[White "Gulecyuz, Deniz"]
[Black "Bibasa, Bob"]
[WhiteFideId "30921341"]
[BlackFideId "10000240"]
[WhiteElo "1923"]
[BlackElo "2056"]
[Result "0-1"]
[Round "07"]
[TimeControl "180+1"]
[Date "2022.03.22"]
[WhiteClock "0:00:12"]
[BlackClock "0:00:55"]

1. e4 {[%clk 0:03:00]}  c5 {[%clk 0:02:59]} 2. Nf3 {[%clk 0:03:01]}  d6 {[%clk 0:02:59]} 3. d4 {[%clk 0:03:01]}  cxd4 {[%clk 0:03:00]} 4. Nxd4 {[%clk 0:03:01]}  Nf6 {[%clk 0:03:00]} 5. Nc3 {[%clk 0:03:01]}  a6 {[%clk 0:02:58]} 6. Bg5 {[%clk 0:03:02]}  Nbd7 {[%clk 0:02:58]} 7. f4 {[%clk 0:03:02]}  Qc7 {[%clk 0:02:58]} 8. Qf3 {[%clk 0:02:59]}  h6 {[%clk 0:02:59]} 9. Bh4 {[%clk 0:02:58]}  g5 {[%clk 0:02:59]} 10. Bf2 {[%clk 0:02:47]}  gxf4 {[%clk 0:02:58]} 11. Qxf4 {[%clk 0:02:47]}  e5 {[%clk 0:02:56]} 12. Qh4 {[%clk 0:02:35]}  exd4 {[%clk 0:02:54]} 13. Bxd4 {[%clk 0:02:36]}  Be7 {[%clk 0:02:54]} 14. Bd3 {[%clk 0:02:25]}  b5 {[%clk 0:02:50]} 15. O-O {[%clk 0:02:25]}  b4 {[%clk 0:02:49]} 16. Ne2 {[%clk 0:02:07]}  Rg8 {[%clk 0:02:39]} 17. Rae1 {[%clk 0:01:54]}  Bb7 {[%clk 0:02:32]} 18. Bxf6 {[%clk 0:01:46]}  Nxf6 {[%clk 0:02:28]} 19. Rxf6 {[%clk 0:01:45]}  Bxf6 {[%clk 0:02:29]} 20. Qxf6 {[%clk 0:01:45]}  Qe7 {[%clk 0:02:30]} 21. Qxh6 {[%clk 0:01:29]}  O-O-O {[%clk 0:02:27]} 22. Nf4 {[%clk 0:01:17]}  f5 {[%clk 0:02:17]} 23. Qh3 {[%clk 0:01:08]}  Kb8 {[%clk 0:02:16]} 24. Qxf5 {[%clk 0:00:55]}  Rdf8 {[%clk 0:02:16]} 25. Qe6 {[%clk 0:00:56]}  Qg5 {[%clk 0:01:58]} 26. Qxd6+ {[%clk 0:00:53]}  Ka8 {[%clk 0:01:59]} 27. Bxa6 {[%clk 0:00:28]}  Qxf4 {[%clk 0:01:57]} 28. Bxb7+ {[%clk 0:00:27]}  Kxb7 {[%clk 0:01:57]} 29. Qxb4+ {[%clk 0:00:28]}  Kc8 {[%clk 0:01:56]} 30. Qc4+ {[%clk 0:00:25]}  Qc7 {[%clk 0:01:56]} 31. Qe6+ {[%clk 0:00:26]}  Kb8 {[%clk 0:01:55]} 32. Qb3+ {[%clk 0:00:26]}  Ka8 {[%clk 0:01:55]} 33. Qd5+ {[%clk 0:00:18]}  Ka7 {[%clk 0:01:53]} 34. Re3 {[%clk 0:00:18]}  Qb6 {[%clk 0:01:52]} 35. Qd7+ {[%clk 0:00:15]}  Kb8 {[%clk 0:01:51]} 36. Qh3 {[%clk 0:00:11]}  Rd8 {[%clk 0:01:47]} 37. Kf2 {[%clk 0:00:09]}  Rd2+ {[%clk 0:01:47]} 38. Ke1 {[%clk 0:00:10]}  Qd4 {[%clk 0:01:39]} 39. Rb3+ {[%clk 0:00:10]}  Ka8 {[%clk 0:01:38]} 40. Ra3+ {[%clk 0:00:10]}  Kb7 {[%clk 0:01:35]} 41. Rb3+ {[%clk 0:00:11]}  Ka8 {[%clk 0:01:33]} 42. Ra3+ {[%clk 0:00:11]}  Kb7 {[%clk 0:01:17]} 43. Rb3+ {[%clk 0:00:11]}  Ka6 {[%clk 0:01:18]} 44. Ra3+ {[%clk 0:00:10]}  Kb6 {[%clk 0:01:09]} 45. Qe6+ {[%clk 0:00:10]}  Qd6 {[%clk 0:01:09]} 46. Rb3+ {[%clk 0:00:10]}  Kc7 {[%clk 0:01:08]} 47. Rc3+ {[%clk 0:00:10]}  Kb7 {[%clk 0:01:07]} 48. Rb3+ {[%clk 0:00:11]}  Ka7 {[%clk 0:00:57]} 49. Qxg8 {[%clk 0:00:12]}  Rd1+ {[%clk 0:00:57]} 50. Kf2 {[%clk 0:00:12]}  Qf4+ {[%clk 0:00:55]} 51. Ke2 {[%clk 0:00:12]}  Rd2+ {[%clk 0:00:55]} 0-1


[Site "https://www.chess.com"]

[Event "Titled Tuesday Blitz March 22 Late 2022"]
[White "Halkias, Stelios"]
[Black "Martinez Reyes, Pedro Ramon"]
[WhiteFideId "4201809"]
[BlackFideId "3901807"]
[WhiteElo "2453"]
[BlackElo "2410"]
[Result "0-1"]
[Round "07"]
[TimeControl "180+1"]
[Date "2022.03.22"]
[WhiteClock "0:00:12"]
[BlackClock "0:01:07"]

1. e4 {[%clk 0:03:00]}  c5 {[%clk 0:02:55]} 2. Nc3 {[%clk 0:03:00]}  Nc6 {[%clk 0:02:55]} 3. Bb5 {[%clk 0:02:59]}  Na5 {[%clk 0:02:54]} 4. Nf3 {[%clk 0:02:57]}  a6 {[%clk 0:02:54]} 5. Be2 {[%clk 0:02:57]}  e6 {[%clk 0:02:54]} 6. d4 {[%clk 0:02:57]}  cxd4 {[%clk 0:02:54]} 7. Nxd4 {[%clk 0:02:57]}  d6 {[%clk 0:02:50]} 8. O-O {[%clk 0:02:57]}  Nf6 {[%clk 0:02:50]} 9. f4 {[%clk 0:02:51]}  Be7 {[%clk 0:02:49]} 10. Kh1 {[%clk 0:02:45]}  O-O {[%clk 0:02:43]} 11. Be3 {[%clk 0:02:44]}  Qc7 {[%clk 0:02:40]} 12. Qd3 {[%clk 0:02:28]}  Rd8 {[%clk 0:02:33]} 13. Rad1 {[%clk 0:02:14]}  b5 {[%clk 0:02:26]} 14. Bf3 {[%clk 0:01:38]}  Bb7 {[%clk 0:02:21]} 15. g4 {[%clk 0:01:35]}  Nc4 {[%clk 0:02:02]} 16. Bc1 {[%clk 0:01:35]}  b4 {[%clk 0:01:58]} 17. Nce2 {[%clk 0:01:30]}  e5 {[%clk 0:01:48]} 18. Nf5 {[%clk 0:01:25]}  d5 {[%clk 0:01:47]} 19. exd5 {[%clk 0:01:23]}  Rxd5 {[%clk 0:01:26]} 20. Nxe7+ {[%clk 0:01:19]}  Qxe7 {[%clk 0:01:25]} 21. Qxc4 {[%clk 0:00:41]}  Rxd1 {[%clk 0:01:24]} 22. Rxd1 {[%clk 0:00:42]}  Bxf3+ {[%clk 0:01:24]} 23. Kg1 {[%clk 0:00:43]}  Qa7+ {[%clk 0:01:18]} 24. Kf1 {[%clk 0:00:19]}  Nxg4 {[%clk 0:01:18]} 25. Nd4 {[%clk 0:00:12]}  Bxd1 {[%clk 0:01:13]} 26. h3 {[%clk 0:00:12]}  Qxd4 {[%clk 0:01:07]} 0-1


[Site "https://www.chess.com"]

[Event "Titled Tuesday Blitz March 22 Late 2022"]
[White "Kostiukov, Alexandr"]
[Black "Seul, Georg"]
[WhiteFideId "14108100"]
[BlackFideId "4601653"]
[WhiteElo "2202"]
[BlackElo "2271"]
[Result "1-0"]
[Round "07"]
[TimeControl "180+1"]
[Date "2022.03.22"]
[WhiteClock "0:02:02"]
[BlackClock "0:01:26"]

1. g3 {[%clk 0:03:00]}  d5 {[%clk 0:02:59]} 2. Bg2 {[%clk 0:03:00]}  c6 {[%clk 0:02:59]} 3. d3 {[%clk 0:03:00]}  e5 {[%clk 0:03:00]} 4. e4 {[%clk 0:03:00]}  dxe4 {[%clk 0:02:59]} 5. dxe4 {[%clk 0:03:01]}  Qxd1+ {[%clk 0:02:58]} 6. Kxd1 {[%clk 0:03:02]}  Nf6 {[%clk 0:02:58]} 7. f3 {[%clk 0:03:02]}  Be7 {[%clk 0:02:56]} 8. Be3 {[%clk 0:03:02]}  Nbd7 {[%clk 0:02:55]} 9. Nd2 {[%clk 0:03:00]}  Bc5 {[%clk 0:02:55]} 10. Ke2 {[%clk 0:02:52]}  a5 {[%clk 0:02:53]} 11. Nh3 {[%clk 0:02:44]}  b6 {[%clk 0:02:47]} 12. Nf2 {[%clk 0:02:43]}  Ba6+ {[%clk 0:02:46]} 13. Nd3 {[%clk 0:02:41]}  Ke7 {[%clk 0:02:44]} 14. a4 {[%clk 0:02:33]}  Bxe3 {[%clk 0:02:43]} 15. Kxe3 {[%clk 0:02:33]}  Bxd3 {[%clk 0:02:41]} 16. cxd3 {[%clk 0:02:32]}  Nc5 {[%clk 0:02:18]} 17. Nc4 {[%clk 0:02:25]}  Nfd7 {[%clk 0:02:16]} 18. Bh3 {[%clk 0:02:21]}  Nb3 {[%clk 0:01:42]} 19. Ra3 {[%clk 0:02:11]}  Ndc5 {[%clk 0:01:26]} 20. Nxe5 {[%clk 0:02:02]} 1-0


[Site "https://www.chess.com"]

[Event "Titled Tuesday Blitz March 22 Late 2022"]
[White "Koutlas, Nikolaos"]
[Black "Liu, Leonardo"]
[WhiteFideId "25827138"]
[BlackFideId "30965780"]
[WhiteElo "1610"]
[BlackElo "2299"]
[Result "0-1"]
[Round "07"]
[TimeControl "180+1"]
[Date "2022.03.22"]
[WhiteClock "0:00:55"]
[BlackClock "0:01:01"]

1. b3 {[%clk 0:03:00]}  Nf6 {[%clk 0:02:59]} 2. Bb2 {[%clk 0:03:00]}  g6 {[%clk 0:03:00]} 3. Nf3 {[%clk 0:03:00]}  Bg7 {[%clk 0:03:00]} 4. c4 {[%clk 0:03:01]}  O-O {[%clk 0:03:00]} 5. Nc3 {[%clk 0:03:01]}  d6 {[%clk 0:03:01]} 6. g3 {[%clk 0:03:00]}  Nc6 {[%clk 0:03:01]} 7. Bg2 {[%clk 0:03:01]}  Rb8 {[%clk 0:03:02]} 8. O-O {[%clk 0:03:01]}  a6 {[%clk 0:03:03]} 9. d4 {[%clk 0:03:00]}  b5 {[%clk 0:03:01]} 10. d5 {[%clk 0:02:58]}  Na5 {[%clk 0:03:01]} 11. cxb5 {[%clk 0:02:56]}  axb5 {[%clk 0:03:01]} 12. a3 {[%clk 0:02:52]}  Bd7 {[%clk 0:02:55]} 13. Nd4 {[%clk 0:02:51]}  Nb7 {[%clk 0:02:41]} 14. b4 {[%clk 0:02:49]}  Qe8 {[%clk 0:02:37]} 15. Rc1 {[%clk 0:02:44]}  Nd8 {[%clk 0:02:36]} 16. Qd3 {[%clk 0:02:36]}  c5 {[%clk 0:02:28]} 17. dxc6 {[%clk 0:02:35]}  Nxc6 {[%clk 0:02:27]} 18. Ncxb5 {[%clk 0:02:34]}  Ne5 {[%clk 0:02:23]} 19. Nc7 {[%clk 0:02:24]}  Nxd3 {[%clk 0:02:22]} 20. Nxe8 {[%clk 0:02:23]}  Nxb2 {[%clk 0:02:11]} 21. Nxg7 {[%clk 0:02:23]}  Kxg7 {[%clk 0:02:10]} 22. Rc7 {[%clk 0:02:15]}  Rfc8 {[%clk 0:02:06]} 23. Ra7 {[%clk 0:02:15]}  Nc4 {[%clk 0:02:03]} 24. Rc1 {[%clk 0:02:09]}  Nxa3 {[%clk 0:01:56]} 25. Rd1 {[%clk 0:01:56]}  Nb5 {[%clk 0:01:50]} 26. Nxb5 {[%clk 0:01:55]}  Rxb5 {[%clk 0:01:48]} 27. h3 {[%clk 0:01:54]}  Rxb4 {[%clk 0:01:44]} 28. e3 {[%clk 0:01:52]}  Rb2 {[%clk 0:01:43]} 29. g4 {[%clk 0:01:50]}  h6 {[%clk 0:01:42]} 30. f4 {[%clk 0:01:48]}  Rcc2 {[%clk 0:01:41]} 31. Bf3 {[%clk 0:01:41]}  Ra2 {[%clk 0:01:22]} 32. Rb7 {[%clk 0:01:36]}  Kf8 {[%clk 0:01:11]} 33. g5 {[%clk 0:01:34]}  hxg5 {[%clk 0:01:11]} 34. fxg5 {[%clk 0:01:35]}  Bc8 {[%clk 0:01:11]} 35. gxf6 {[%clk 0:01:22]}  Bxb7 {[%clk 0:01:11]} 36. fxe7+ {[%clk 0:01:23]}  Kxe7 {[%clk 0:01:11]} 37. Bxb7 {[%clk 0:01:23]}  Re2 {[%clk 0:01:09]} 38. Bd5 {[%clk 0:01:13]}  Rad2 {[%clk 0:01:07]} 39. Rxd2 {[%clk 0:01:11]}  Rxd2 {[%clk 0:01:08]} 40. Bf3 {[%clk 0:01:10]}  Kf6 {[%clk 0:01:05]} 41. Kf1 {[%clk 0:01:09]}  Ke5 {[%clk 0:01:04]} 42. Kg1 {[%clk 0:01:07]}  f5 {[%clk 0:01:03]} 43. Kf1 {[%clk 0:01:05]}  d5 {[%clk 0:01:03]} 44. Be2 {[%clk 0:01:02]}  Ke4 {[%clk 0:01:02]} 45. Kf2 {[%clk 0:00:57]}  g5 {[%clk 0:01:01]} 46. Kf1 {[%clk 0:00:55]}  Kxe3 {[%clk 0:01:01]} 0-1


[Site "https://www.chess.com"]